[Event "Chpt France Universitaire 2024"]
[Site "Bastia, France"]
[Date "2024.04.06"]
[Round "4.8"]
[White "Pheng, Wissam"]
[Black "Maache, Jawad"]
[Result "0-1"]
[TimeControl "15min+5s"]
[WhiteElo "1975"]
[BlackElo "2154"]

1. e4 {[%clk 00:15:05]} {[%emt 00:00:02]} d5 {[%clk 00:15:05]} {[%emt
00:00:05]} 2. exd5 {[%clk 00:15:05]} {[%emt 00:00:01]} Qxd5 {[%clk 00:15:05]}
{[%emt 00:00:02]} 3. Nc3 {[%clk 00:15:05]} Qa5 {[%clk 00:15:05]} {[%emt
00:00:01]} 4. d4 {[%clk 00:15:05]} {[%emt 00:00:02]} Nf6 {[%clk 00:15:05]}
{[%emt 00:00:02]} 5. Nf3 {[%clk 00:15:05]} {[%emt 00:00:01]} Bf5 {[%clk
00:15:05]} {[%emt 00:00:02]} 6. Ne5 {[%clk 00:14:58]} {[%emt 00:00:12]} c6
{[%clk 00:15:00]} {[%emt 00:00:10]} 7. Bc4 {[%clk 00:14:58]} {[%emt 00:00:03]}
e6 {[%clk 00:14:58]} {[%emt 00:00:02]} 8. g4 {[%clk 00:14:58]} {[%emt
00:00:02]} Be4 {[%clk 00:14:56]} {[%emt 00:00:08]} 9. O-O {[%clk 00:12:45]}
{[%emt 00:02:19]} Bd5 {[%clk 00:14:15]} {[%emt 00:00:46]} 10. Nxd5 {[%clk
00:12:22]} {[%emt 00:00:29]} cxd5 {[%clk 00:14:05]} {[%emt 00:00:14]} 11. Bd3
{[%clk 00:12:12]} {[%emt 00:00:15]} Nbd7 {[%clk 00:12:14]} {[%emt 00:01:56]} 12.
Nxd7 {[%clk 00:10:53]} {[%emt 00:01:24]} Nxd7 {[%clk 00:12:14]} {[%emt
00:00:03]} 13. Bf4 {[%clk 00:10:33]} {[%emt 00:00:25]} Qb6 {[%clk 00:12:05]}
{[%emt 00:00:13]} 14. c3 {[%clk 00:10:26]} {[%emt 00:00:12]} Bd6 {[%clk
00:11:51]} {[%emt 00:00:18]} 15. Bxd6 {[%clk 00:09:46]} {[%emt 00:00:46]} Qxd6
{[%clk 00:11:51]} {[%emt 00:00:02]} 16. Qe2 {[%clk 00:09:43]} {[%emt 00:00:09]}
Qf4 {[%clk 00:11:06]} {[%emt 00:00:50]} 17. Bb5 {[%clk 00:09:11]} {[%emt
00:00:38]} O-O-O {[%clk 00:09:34]} {[%emt 00:01:36]} 18. c4 {[%clk 00:06:18]}
{[%emt 00:02:59]} Nf6 {[%clk 00:08:57]} {[%emt 00:00:41]} 19. f3 {[%clk
00:05:26]} {[%emt 00:00:58]} a6 {[%clk 00:07:00]} {[%emt 00:02:02]} 20. Bxa6
{[%clk 00:05:10]} {[%emt 00:00:21]} bxa6 {[%clk 00:06:12]} {[%emt 00:00:54]} 21.
cxd5 {[%clk 00:05:10]} {[%emt 00:00:02]} Nxd5 {[%clk 00:05:34]} {[%emt
00:00:42]} 22. Qxa6+ {[%clk 00:04:45]} {[%emt 00:00:31]} Kd7 {[%clk 00:05:34]}
{[%emt 00:00:05]} 23. Rac1 {[%clk 00:04:01]} {[%emt 00:00:49]} Rc8 {[%clk
00:04:49]} {[%emt 00:00:50]} 24. Qb5+ {[%clk 00:02:45]} {[%emt 00:01:21]} Ke7
{[%clk 00:04:40]} {[%emt 00:00:13]} 25. Rc4 {[%clk 00:02:16]} {[%emt 00:00:34]}
Rxc4 {[%clk 00:03:48]} {[%emt 00:00:57]} 26. Qxc4 {[%clk 00:02:16]} {[%emt
00:00:05]} Qe3+ {[%clk 00:02:42]} {[%emt 00:01:10]} 27. Kh1 {[%clk 00:02:16]}
{[%emt 00:00:03]} Rb8 {[%clk 00:02:20]} {[%emt 00:00:26]} 28. g5 {[%clk
00:01:08]} {[%emt 00:01:14]} Qxg5 {[%clk 00:01:53]} {[%emt 00:00:32]} 29. f4
{[%clk 00:00:54]} {[%emt 00:00:19]} Qg2+ {[%clk 00:01:36]} {[%emt 00:00:22]} 30.
Kxg2 {[%clk 00:00:54]} {[%emt 00:00:05]} Ne3+ {[%clk 00:01:36]} 31. Kf2 {[%clk
00:00:49]} {[%emt 00:00:10]} Nxc4 {[%clk 00:01:36]} {[%emt 00:00:02]} 32. b3
{[%clk 00:00:49]} {[%emt 00:00:02]} Nd6 {[%clk 00:01:34]} {[%emt 00:00:07]} 33.
Rc1 {[%clk 00:00:43]} {[%emt 00:00:12]} Kd7 {[%clk 00:01:26]} {[%emt 00:00:13]}
34. Ke3 {[%clk 00:00:43]} {[%emt 00:00:03]} Nf5+ {[%clk 00:01:17]} {[%emt
00:00:14]} 35. Ke4 {[%clk 00:00:43]} {[%emt 00:00:02]} Rb4 {[%clk 00:01:06]}
{[%emt 00:00:16]} 36. Rd1 {[%clk 00:00:42]} {[%emt 00:00:07]} Kd6 {[%clk
00:00:58]} {[%emt 00:00:12]} 37. Rd2 {[%clk 00:00:41]} {[%emt 00:00:06]} Ne7
{[%clk 00:00:50]} {[%emt 00:00:13]} 38. Kd3 {[%clk 00:00:40]} {[%emt 00:00:06]}
Nd5 {[%clk 00:00:50]} {[%emt 00:00:03]} 39. Kc2 {[%clk 00:00:39]} {[%emt
00:00:06]} Nxf4 {[%clk 00:00:44]} {[%emt 00:00:11]} 40. a3 {[%clk 00:00:39]}
{[%emt 00:00:01]} Rb7 {[%clk 00:00:44]} {[%emt 00:00:04]} 41. Rf2 {[%clk
00:00:39]} {[%emt 00:00:02]} Nd5 {[%clk 00:00:44]} {[%emt 00:00:06]} 42. b4
{[%clk 00:00:38]} {[%emt 00:00:07]} Rc7+ {[%clk 00:00:44]} {[%emt 00:00:03]} 43.
Kb2 {[%clk 00:00:38]} {[%emt 00:00:01]} f5 {[%clk 00:00:44]} {[%emt 00:00:05]}
44. Rf3 {[%clk 00:00:36]} {[%emt 00:00:06]} f4 {[%clk 00:00:44]} {[%emt
00:00:03]} 45. Kb3 {[%clk 00:00:36]} {[%emt 00:00:01]} g5 {[%clk 00:00:44]}
{[%emt 00:00:05]} 46. h3 {[%clk 00:00:36]} {[%emt 00:00:01]} h5 {[%clk
00:00:44]} {[%emt 00:00:02]} 47. a4 {[%clk 00:00:36]} {[%emt 00:00:04]} g4
{[%clk 00:00:44]} {[%emt 00:00:02]} 48. hxg4 {[%clk 00:00:36]} {[%emt
00:00:01]} hxg4 {[%clk 00:00:44]} {[%emt 00:00:01]} 49. Rf1 {[%clk 00:00:23]}
{[%emt 00:00:19]} g3 {[%clk 00:00:44]} {[%emt 00:00:05]} 50. b5 {[%clk
00:00:23]} {[%emt 00:00:03]} g2 {[%clk 00:00:44]} {[%emt 00:00:05]} 51. Rg1
{[%clk 00:00:19]} {[%emt 00:00:09]} f3 {[%clk 00:00:44]} {[%emt 00:00:02]} 52.
b6 {[%clk 00:00:14]} {[%emt 00:00:10]} Nxb6 {[%clk 00:00:40]} {[%emt 00:00:09]}
53. a5 {[%clk 00:00:14]} {[%emt 00:00:01]} Nd5 {[%clk 00:00:40]} {[%emt
00:00:02]} 54. a6 {[%clk 00:00:14]} {[%emt 00:00:03]} f2 {[%clk 00:00:40]}
{[%emt 00:00:02]} 55. Rxg2 {[%clk 00:00:14]} {[%emt 00:00:02]} f1=Q {[%clk
00:00:40]} {[%emt 00:00:02]} 56. Rb2 {[%clk 00:00:14]} {[%emt 00:00:02]} Qc4+
{[%clk 00:00:40]} {[%emt 00:00:04]} 57. Ka3 {[%clk 00:00:14]} {[%emt 00:00:02]}
Qxa6+ {[%clk 00:00:40]} {[%emt 00:00:04]} 58. Kb3 {[%clk 00:00:14]} {[%emt
00:00:01]} Rc3# {[%emt 00:00:01]} 0-1

[Event "Chpt France Universitaire 2024"]
[Site "Bastia, France"]
[Date "2024.04.06"]
[Round "4.9"]
[White "Arcelin, Gael"]
[Black "Sumarriva Paulin, Laura"]
[Result "1-0"]
[TimeControl "15min+5s"]
[WhiteElo "2126"]
[BlackElo "2046"]

1. e4 {[%clk 00:15:05]} e6 {[%clk 00:15:05]} {[%emt 00:00:02]} 2. d4 {[%clk
00:15:00]} {[%emt 00:00:10]} d5 {[%clk 00:15:05]} {[%emt 00:00:04]} 3. e5
{[%clk 00:15:00]} {[%emt 00:00:01]} c5 {[%clk 00:15:05]} {[%emt 00:00:02]} 4.
c3 {[%clk 00:15:00]} {[%emt 00:00:01]} Bd7 {[%clk 00:15:05]} {[%emt 00:00:02]}
5. Nf3 {[%clk 00:15:00]} {[%emt 00:00:03]} a6 {[%clk 00:15:05]} {[%emt
00:00:02]} 6. h4 {[%clk 00:14:38]} {[%emt 00:00:27]} cxd4 {[%clk 00:14:05]}
{[%emt 00:01:06]} 7. cxd4 {[%clk 00:14:37]} {[%emt 00:00:05]} Bb5 {[%clk
00:14:05]} {[%emt 00:00:03]} 8. h5 {[%clk 00:14:36]} {[%emt 00:00:06]} Bxf1
{[%clk 00:13:26]} {[%emt 00:00:44]} 9. Kxf1 {[%clk 00:14:36]} {[%emt 00:00:02]}
Nc6 {[%clk 00:13:03]} {[%emt 00:00:28]} 10. Nc3 {[%clk 00:14:36]} {[%emt
00:00:02]} Qb6 {[%clk 00:11:46]} {[%emt 00:01:22]} 11. Rh3 {[%clk 00:14:04]}
{[%emt 00:00:37]} Nge7 {[%clk 00:11:15]} {[%emt 00:00:37]} 12. Ne2 {[%clk
00:13:27]} {[%emt 00:00:41]} Rc8 {[%clk 00:10:03]} {[%emt 00:01:18]} 13. Kg1
{[%clk 00:13:19]} {[%emt 00:00:13]} Nb4 {[%clk 00:09:19]} {[%emt 00:00:48]} 14.
Ne1 {[%clk 00:12:43]} {[%emt 00:00:41]} Nbc6 {[%clk 00:07:52]} {[%emt
00:01:33]} 15. Nf3 {[%clk 00:11:16]} {[%emt 00:01:32]} Nb4 {[%clk 00:05:43]}
{[%emt 00:02:14]} 16. Nc3 {[%clk 00:11:16]} Nf5 {[%clk 00:04:33]} {[%emt
00:01:16]} 17. g4 {[%clk 00:10:59]} {[%emt 00:00:22]} Nh6 {[%clk 00:04:09]}
{[%emt 00:00:29]} 18. Ne1 {[%clk 00:10:35]} {[%emt 00:00:28]} Nc6 {[%clk
00:03:52]} {[%emt 00:00:23]} 19. Nc2 {[%clk 00:09:02]} {[%emt 00:01:38]} Nb4
{[%clk 00:03:23]} {[%emt 00:00:34]} 20. Nxb4 {[%clk 00:09:02]} {[%emt
00:00:02]} Bxb4 {[%clk 00:03:07]} {[%emt 00:00:21]} 21. Bf4 {[%clk 00:07:37]}
{[%emt 00:01:31]} Rc4 {[%clk 00:02:32]} {[%emt 00:00:41]} 22. Rd3 {[%clk
00:07:37]} {[%emt 00:00:03]} Qc7 {[%clk 00:02:00]} {[%emt 00:00:36]} 23. Rc1
{[%clk 00:06:51]} {[%emt 00:00:51]} b5 {[%clk 00:02:00]} {[%emt 00:00:06]} 24.
f3 {[%clk 00:06:08]} {[%emt 00:00:48]} Ba5 {[%clk 00:01:48]} {[%emt 00:00:17]}
25. Ne2 {[%clk 00:05:34]} {[%emt 00:00:38]} Rxc1 {[%clk 00:01:31]} {[%emt
00:00:22]} 26. Nxc1 {[%clk 00:05:34]} {[%emt 00:00:01]} b4 {[%clk 00:01:25]}
{[%emt 00:00:12]} 27. Qa4+ {[%clk 00:05:23]} {[%emt 00:00:16]} Ke7 {[%clk
00:01:16]} {[%emt 00:00:14]} 28. Nb3 {[%clk 00:05:01]} {[%emt 00:00:27]} Bb6
{[%clk 00:00:43]} {[%emt 00:00:38]} 29. Qxb4+ {[%clk 00:04:50]} {[%emt
00:00:16]} Kd7 {[%clk 00:00:33]} {[%emt 00:00:15]} 30. Rc3 {[%clk 00:04:48]}
{[%emt 00:00:07]} Qa7 {[%clk 00:00:33]} {[%emt 00:00:03]} 31. Qd6+ {[%clk
00:04:48]} {[%emt 00:00:04]} 1-0

[Event "Chpt France Universitaire 2024"]
[Site "Bastia, France"]
[Date "2024.04.06"]
[Round "4.10"]
[White "Sabiani, Chjara"]
[Black "Aghamir Alrobiai, Nizar"]
[Result "0-1"]
[TimeControl "15min+5s"]
[WhiteElo "1843"]
[BlackElo "2098"]

1. d4 {[%clk 00:15:05]} Nf6 {[%clk 00:15:05]} {[%emt 00:00:02]} 2. c4 {[%clk
00:15:05]} {[%emt 00:00:03]} g6 {[%clk 00:15:05]} {[%emt 00:00:01]} 3. Nc3
{[%clk 00:15:05]} {[%emt 00:00:02]} d5 {[%clk 00:15:05]} {[%emt 00:00:01]} 4.
Qb3 {[%clk 00:15:05]} {[%emt 00:00:01]} dxc4 {[%clk 00:14:52]} {[%emt
00:00:18]} 5. Qxc4 {[%clk 00:15:05]} {[%emt 00:00:02]} Bg7 {[%clk 00:14:52]}
{[%emt 00:00:02]} 6. e4 {[%clk 00:15:05]} {[%emt 00:00:02]} O-O {[%clk
00:14:15]} {[%emt 00:00:42]} 7. Nf3 {[%clk 00:14:30]} {[%emt 00:00:40]} Na6
{[%clk 00:13:11]} {[%emt 00:01:08]} 8. Bf4 {[%clk 00:13:53]} {[%emt 00:00:42]}
c5 {[%clk 00:12:46]} {[%emt 00:00:31]} 9. Rd1 {[%clk 00:11:12]} {[%emt
00:02:47]} cxd4 {[%clk 00:11:35]} {[%emt 00:01:15]} 10. e5 {[%clk 00:10:55]}
{[%emt 00:00:22]} Nh5 {[%clk 00:07:47]} {[%emt 00:03:53]} 11. Rxd4 {[%clk
00:10:40]} {[%emt 00:00:20]} Qa5 {[%clk 00:05:22]} {[%emt 00:02:29]} 12. Be2
{[%clk 00:08:27]} {[%emt 00:02:18]} Nxf4 {[%clk 00:05:18]} {[%emt 00:00:09]} 13.
Rxf4 {[%clk 00:08:27]} {[%emt 00:00:03]} Be6 {[%clk 00:04:44]} {[%emt
00:00:39]} 14. Qa4 {[%clk 00:07:43]} {[%emt 00:00:49]} Qxa4 {[%clk 00:04:17]}
{[%emt 00:00:33]} 15. Rxa4 {[%clk 00:07:43]} {[%emt 00:00:04]} Nc5 {[%clk
00:04:15]} {[%emt 00:00:06]} 16. Rb4 {[%clk 00:07:14]} {[%emt 00:00:33]} Rfd8
{[%clk 00:04:00]} {[%emt 00:00:20]} 17. O-O {[%clk 00:07:12]} {[%emt 00:00:07]}
b6 {[%clk 00:03:57]} {[%emt 00:00:10]} 18. Rh4 {[%clk 00:06:19]} {[%emt
00:00:57]} h6 {[%clk 00:03:42]} {[%emt 00:00:21]} 19. Re1 {[%clk 00:04:38]}
{[%emt 00:01:47]} g5 {[%clk 00:02:55]} {[%emt 00:00:52]} 20. Rb4 {[%clk
00:03:54]} {[%emt 00:00:48]} Rab8 {[%clk 00:02:41]} {[%emt 00:00:20]} 21. Bf1
{[%clk 00:03:37]} {[%emt 00:00:21]} a5 {[%clk 00:02:27]} {[%emt 00:00:21]} 22.
Rd4 {[%clk 00:03:37]} {[%emt 00:00:01]} g4 {[%clk 00:02:27]} {[%emt 00:00:02]}
23. Rxd8+ {[%clk 00:03:23]} {[%emt 00:00:20]} Rxd8 {[%clk 00:02:27]} {[%emt
00:00:01]} 24. Nh4 {[%clk 00:03:18]} {[%emt 00:00:10]} Rd4 {[%clk 00:02:05]}
{[%emt 00:00:27]} 25. f3 {[%clk 00:02:03]} {[%emt 00:01:20]} h5 {[%clk
00:02:05]} {[%emt 00:00:02]} 26. Ne2 {[%clk 00:01:47]} {[%emt 00:00:21]} Rb4
{[%clk 00:01:55]} {[%emt 00:00:15]} 27. b3 {[%clk 00:01:24]} {[%emt 00:00:28]}
Bxe5 {[%clk 00:01:55]} {[%emt 00:00:04]} 28. Ng3 {[%clk 00:01:21]} {[%emt
00:00:08]} Bxg3 {[%clk 00:01:30]} {[%emt 00:00:29]} 29. hxg3 {[%clk 00:01:21]}
{[%emt 00:00:01]} a4 {[%clk 00:01:30]} {[%emt 00:00:03]} 30. bxa4 {[%clk
00:01:06]} {[%emt 00:00:21]} Rxa4 {[%clk 00:01:30]} {[%emt 00:00:05]} 31. Rb1
{[%clk 00:00:54]} {[%emt 00:00:16]} Rxa2 {[%clk 00:00:55]} {[%emt 00:00:40]} 32.
Rxb6 {[%clk 00:00:54]} {[%emt 00:00:01]} gxf3 {[%clk 00:00:55]} {[%emt
00:00:02]} 33. Nxf3 {[%clk 00:00:49]} {[%emt 00:00:09]} Ne4 {[%clk 00:00:53]}
{[%emt 00:00:07]} 34. Kh2 {[%clk 00:00:43]} {[%emt 00:00:12]} Nf6 {[%clk
00:00:53]} {[%emt 00:00:06]} 35. Rb8+ {[%clk 00:00:40]} {[%emt 00:00:08]} Kg7
{[%clk 00:00:53]} {[%emt 00:00:01]} 36. Ng5 {[%clk 00:00:40]} {[%emt 00:00:05]}
Ng4+ {[%clk 00:00:53]} {[%emt 00:00:04]} 37. Kg1 {[%clk 00:00:40]} Bd5 {[%clk
00:00:53]} {[%emt 00:00:02]} 38. Rb5 {[%clk 00:00:35]} {[%emt 00:00:10]} e6
{[%clk 00:00:44]} {[%emt 00:00:15]} 39. Rc5 {[%clk 00:00:35]} {[%emt 00:00:02]}
Kg6 {[%clk 00:00:37]} {[%emt 00:00:12]} 40. Nf3 {[%clk 00:00:35]} {[%emt
00:00:02]} Ra1 {[%clk 00:00:37]} {[%emt 00:00:04]} 41. Rc3 {[%clk 00:00:29]}
{[%emt 00:00:12]} Bb7 {[%clk 00:00:31]} {[%emt 00:00:11]} 42. Rb3 {[%clk
00:00:28]} {[%emt 00:00:06]} Ba6 {[%clk 00:00:30]} {[%emt 00:00:06]} 43. Nd2
{[%clk 00:00:28]} {[%emt 00:00:02]} f6 {[%clk 00:00:21]} {[%emt 00:00:14]} 44.
Rb6 {[%clk 00:00:28]} {[%emt 00:00:01]} Bxf1 {[%clk 00:00:21]} {[%emt
00:00:02]} 45. Nxf1 {[%clk 00:00:28]} {[%emt 00:00:01]} Ne3 {[%clk 00:00:21]}
{[%emt 00:00:02]} 46. Kf2 {[%clk 00:00:27]} {[%emt 00:00:07]} Nxf1 {[%clk
00:00:21]} {[%emt 00:00:05]} 47. Rxe6 {[%clk 00:00:27]} {[%emt 00:00:01]} Nd2
{[%clk 00:00:21]} {[%emt 00:00:02]} 48. Rb6 {[%clk 00:00:27]} {[%emt 00:00:03]}
Ne4+ {[%clk 00:00:21]} {[%emt 00:00:02]} 49. Kf3 {[%clk 00:00:27]} Ng5+ {[%clk
00:00:21]} {[%emt 00:00:02]} 50. Kf2 {[%clk 00:00:27]} Ra2+ {[%clk 00:00:21]}
{[%emt 00:00:02]} 51. Kf1 {[%clk 00:00:27]} {[%emt 00:00:01]} Ne4 {[%clk
00:00:21]} {[%emt 00:00:02]} 52. Rb3 {[%clk 00:00:27]} {[%emt 00:00:01]} Nd2+
{[%clk 00:00:21]} {[%emt 00:00:02]} 0-1

[Event "Chpt France Universitaire 2024"]
[Site "Bastia, France"]
[Date "2024.04.06"]
[Round "4.11"]
[White "Hingouet, Matthieu"]
[Black "Leriche, Ines"]
[Result "1-0"]
[TimeControl "15min+5s"]
[WhiteElo "2210"]
[BlackElo "1964"]

1. d4 {[%clk 00:15:05]} {[%emt 00:00:01]} d5 {[%clk 00:15:05]} {[%emt
00:00:03]} 2. c4 {[%clk 00:15:05]} {[%emt 00:00:02]} e6 {[%clk 00:15:05]}
{[%emt 00:00:02]} 3. Nc3 {[%clk 00:15:05]} {[%emt 00:00:02]} h6 {[%clk
00:15:05]} {[%emt 00:00:02]} 4. Nf3 {[%clk 00:14:57]} {[%emt 00:00:13]} Nf6
{[%clk 00:15:05]} {[%emt 00:00:02]} 5. e3 {[%clk 00:13:35]} {[%emt 00:01:27]}
Bd6 {[%clk 00:13:56]} {[%emt 00:01:15]} 6. b3 {[%clk 00:12:48]} {[%emt
00:00:52]} O-O {[%clk 00:13:35]} {[%emt 00:00:25]} 7. Bb2 {[%clk 00:12:03]}
{[%emt 00:00:51]} b6 {[%clk 00:13:10]} {[%emt 00:00:31]} 8. Bd3 {[%clk
00:11:26]} {[%emt 00:00:40]} Bb7 {[%clk 00:13:10]} {[%emt 00:00:03]} 9. O-O
{[%clk 00:11:26]} {[%emt 00:00:05]} Nbd7 {[%clk 00:13:00]} {[%emt 00:00:16]} 10.
Qe2 {[%clk 00:10:57]} {[%emt 00:00:34]} a6 {[%clk 00:11:22]} {[%emt 00:01:43]}
11. e4 {[%clk 00:10:31]} {[%emt 00:00:31]} dxe4 {[%clk 00:10:21]} {[%emt
00:01:06]} 12. Nxe4 {[%clk 00:10:31]} {[%emt 00:00:01]} Nxe4 {[%clk 00:10:21]}
{[%emt 00:00:06]} 13. Bxe4 {[%clk 00:10:31]} {[%emt 00:00:01]} Bxe4 {[%clk
00:10:11]} {[%emt 00:00:15]} 14. Qxe4 {[%clk 00:10:31]} Nf6 {[%clk 00:10:11]}
{[%emt 00:00:03]} 15. Qe2 {[%clk 00:08:26]} {[%emt 00:02:09]} Re8 {[%clk
00:09:51]} {[%emt 00:00:25]} 16. Rad1 {[%clk 00:08:17]} {[%emt 00:00:14]} a5
{[%clk 00:09:32]} {[%emt 00:00:25]} 17. a4 {[%clk 00:07:34]} {[%emt 00:00:47]}
Bb4 {[%clk 00:09:08]} {[%emt 00:00:30]} 18. Ne5 {[%clk 00:07:29]} {[%emt
00:00:10]} Qd6 {[%clk 00:08:47]} {[%emt 00:00:26]} 19. Rd3 {[%clk 00:07:15]}
{[%emt 00:00:18]} Rad8 {[%clk 00:08:15]} {[%emt 00:00:37]} 20. Rg3 {[%clk
00:06:36]} {[%emt 00:00:44]} c5 {[%emt 00:04:08]} 21. Qf3 {[%emt 00:01:10]} Kf8
{[%emt 00:04:48]} 22. Nc6 {[%clk 00:01:56]} {[%emt 00:00:08]} Rc8 23. Nxb4
{[%emt 00:00:14]} axb4 {[%emt 00:00:05]} 24. dxc5 {[%clk 00:01:52]} {[%emt
00:00:06]} Rxc5 {[%clk 00:01:51]} {[%emt 00:01:14]} 25. Bxf6 {[%clk 00:01:46]}
{[%emt 00:00:12]} gxf6 {[%clk 00:01:50]} {[%emt 00:00:06]} 26. Qxf6 {[%clk
00:01:46]} Rf5 {[%clk 00:01:49]} {[%emt 00:00:06]} 27. Qxh6+ {[%clk 00:01:35]}
{[%emt 00:00:15]} Ke7 {[%clk 00:01:49]} {[%emt 00:00:02]} 28. Qh4+ {[%clk
00:01:26]} {[%emt 00:00:14]} Kd7 {[%clk 00:01:43]} {[%emt 00:00:10]} 29. Qe4
{[%clk 00:01:26]} {[%emt 00:00:02]} Kc7 {[%clk 00:01:39]} {[%emt 00:00:09]} 30.
Rd3 {[%clk 00:01:14]} {[%emt 00:00:17]} Qc5 {[%clk 00:00:32]} {[%emt 00:01:13]}
31. Rf3 {[%clk 00:01:14]} {[%emt 00:00:01]} Rd8 {[%clk 00:00:17]} {[%emt
00:00:20]} 32. Rxf5 {[%clk 00:01:14]} {[%emt 00:00:03]} exf5 {[%clk 00:00:17]}
{[%emt 00:00:01]} 33. Qf3 {[%clk 00:00:50]} {[%emt 00:00:29]} Rd2 {[%clk
00:00:17]} {[%emt 00:00:04]} 34. Qf4+ {[%clk 00:00:49]} {[%emt 00:00:06]} Rd6
{[%clk 00:00:17]} {[%emt 00:00:02]} 35. Rd1 {[%clk 00:00:49]} {[%emt 00:00:01]}
Kc6 {[%clk 00:00:08]} {[%emt 00:00:14]} 36. Rxd6+ {[%clk 00:00:49]} {[%emt
00:00:03]} Qxd6 {[%clk 00:00:08]} {[%emt 00:00:02]} 37. Qxd6+ {[%clk 00:00:49]}
{[%emt 00:00:03]} Kxd6 {[%clk 00:00:08]} {[%emt 00:00:04]} 38. Kf1 {[%clk
00:00:44]} {[%emt 00:00:09]} Kc5 {[%clk 00:00:08]} {[%emt 00:00:02]} 39. Ke2
{[%clk 00:00:44]} {[%emt 00:00:01]} Kd4 {[%clk 00:00:08]} {[%emt 00:00:01]} 40.
Kd2 {[%clk 00:00:44]} {[%emt 00:00:02]} Kd5 {[%emt 00:00:07]} 1-0